bitfinex/quotes_BTCUSD_20251230
["timestamp","ask_amount","ask_price","bid_price","bid_amount"]
[1767082079947,0.01065694,87794.0,87774.0,0.01139289]
[1767082080334,0.12332498,87788.0,87775.0,0.01139276]
[1767082080548,0.01065694,87787.0,87775.0,0.01139276]
[1767082080726,0.01065694,87786.0,87768.0,0.01139367]
[1767082080925,0.02213694,87785.0,87775.0,0.01139276]
[1767082081080,0.01065694,87784.0,87773.0,0.01139302]
[1767082081280,0.11228,87801.0,87773.0,0.05696512]
[1767082081489,0.11228,87801.0,87772.0,0.01148]
[1767082081490,0.11228,87801.0,87778.0,0.75475832]
[1767082081689,0.13480498,87800.0,87783.0,0.01139172]
[1767082082242,0.13480498,87800.0,87781.0,0.01139198]
[1767082082444,0.13480498,87800.0,87782.0,0.01139185]
[1767082082854,0.13480498,87800.0,87781.0,0.01139198]
[1767082083056,0.01138978,87798.0,87779.0,0.01148]
[1767082083283,0.1461945,87800.0,87779.0,0.01148]
[1767082083284,0.01148,87799.0,87779.0,0.01148]
[1767082083467,0.01148,87799.0,87779.0,0.02287224]
[1767082083688,0.01148,87799.0,87781.0,0.01139198]
[1767082084104,0.01148,87799.0,87784.0,0.01139159]
[1767082084305,0.01148,87799.0,87781.0,0.01139198]
[1767082084724,0.01148,87799.0,87780.0,0.01139211]
[1767082085103,0.01148,87799.0,87781.0,0.01139198]
[1767082085482,0.01148,87799.0,87786.0,0.01139133]
[1767082085687,0.01148,87799.0,87782.0,0.01139185]
[1767082085915,0.01148,87799.0,87781.0,0.05695954]
[1767082085916,0.01138978,87798.0,87781.0,0.000138]
[1767082086287,0.0569489,87798.0,87781.0,0.000138]
[1767082086490,0.02286965,87799.0,87781.0,0.000138]
[1767082086960,0.01138978,87798.0,87781.0,0.000138]
[1767082087158,0.01148,87799.0,87781.0,0.000138]
[1767082087882,0.01148,87798.0,87788.0,0.01139107]
[1767082088024,0.01148,87797.0,87787.0,0.0113912]
[1767082088228,0.01148,87797.0,87788.0,0.01139107]
[1767082088441,0.01148,87797.0,87789.0,0.01139094]
[1767082088643,0.12332498,87804.0,87791.0,0.01139068]
[1767082088826,0.12332498,87804.0,87788.0,0.06834633]
[1767082088827,0.01148,87798.0,87788.0,0.01139107]
[1767082089027,0.01260798,87806.0,87790.0,0.01139081]
[1767082089271,0.12332498,87804.0,87790.0,0.01139081]
[1767082089800,0.01260798,87806.0,87792.0,0.01139055]
[1767082090011,0.01148,87804.0,87791.0,0.01139068]
[1767082090217,0.01148,87804.0,87793.0,0.01139042]
[1767082090663,0.01148,87804.0,87792.0,0.01139055]
[1767082090817,0.01148,87804.0,87791.0,0.01139068]
[1767082091227,0.01148,87804.0,87788.0,0.01139107]
[1767082091425,0.01148,87804.0,87791.0,0.01139068]
[1767082091930,0.01148,87804.0,87792.0,0.01139055]
[1767082092332,0.01148,87804.0,87794.0,0.0113903]
[1767082092878,0.01148,87804.0,87792.0,0.01139055]
[1767082093088,0.01148,87804.0,87793.0,0.01139042]
[1767082093344,0.01066577,87803.0,87791.0,0.01139068]
[1767082093547,0.01066577,87802.0,87791.0,0.01139068]
[1767082093751,0.01260798,87806.0,87790.0,0.01139081]
[1767082093898,0.01066571,87805.0,87790.0,0.01139081]
[1767082094110,0.01066571,87804.0,87790.0,0.01139081]
[1767082094309,0.01066571,87803.0,87794.0,0.0113903]
[1767082094519,0.01260798,87806.0,87799.0,0.01138965]
[1767082094734,0.0004,87820.0,87808.0,0.01138848]
[1767082094735,0.01148,87818.0,87808.0,0.01138848]
[1767082094934,0.01066371,87817.0,87807.0,0.01138861]
[1767082095134,0.01148,87818.0,87807.0,0.01138861]
[1767082095333,0.01066055,87817.0,87807.0,0.01138861]
[1767082095542,0.0004,87820.0,87808.0,0.01138848]
[1767082095737,0.0004,87820.0,87812.0,0.01138796]
[1767082096013,0.0004,87820.0,87810.0,0.01138822]
[1767082096223,0.0004,87820.0,87806.0,0.05748913]
[1767082096224,0.0004,87820.0,87806.0,0.00054599]
[1767082096416,0.0004,87820.0,87808.0,0.01148]
[1767082097190,0.0004,87820.0,87809.0,0.01138835]
[1767082097360,0.0004,87820.0,87810.0,0.01138822]
[1767082098121,0.0004,87820.0,87809.0,0.01138835]
[1767082098349,0.0004,87820.0,87811.0,0.01138809]
[1767082098556,0.0004,87820.0,87809.0,0.01138835]
[1767082098783,0.0004,87820.0,87808.0,0.02286848]
[1767082098987,0.0004,87820.0,87809.0,0.01138835]
[1767082099396,0.0004,87820.0,87805.0,0.01138887]
[1767082099397,0.0113877,87814.0,87786.0,0.06834755]
[1767082099638,0.05694104,87811.0,87787.0,0.0798271]
[1767082099845,0.01148,87810.0,87791.0,0.01139068]
[1767082100046,0.01148,87809.0,87791.0,0.01139068]
[1767082100246,0.01148,87809.0,87798.0,0.00043566]
[1767082101431,0.01148,87809.0,87799.0,0.05694825]
[1767082101645,0.01148,87809.0,87801.0,0.01138939]
[1767082101865,0.01148,87809.0,87798.0,0.00043566]
[1767082102070,0.01138874,87806.0,87798.0,0.00043566]
[1767082102313,0.12332498,87801.0,87798.0,0.00043566]
[1767082102515,0.01138861,87807.0,87798.0,0.00043566]
[1767082102717,0.12332498,87805.0,87798.0,0.00043566]
[1767082103128,0.01138744,87816.0,87798.0,0.00043566]
[1767082103267,0.0113877,87814.0,87807.0,0.000138]
[1767082103502,0.01138783,87813.0,87807.0,0.000138]
[1767082103708,0.01148,87815.0,87807.0,0.000138]
[1767082103709,0.02286757,87815.0,87807.0,0.000138]
[1767082103913,0.0113877,87814.0,87807.0,0.000138]
[1767082104114,0.01138783,87813.0,87807.0,0.000138]
[1767082104527,0.0113877,87814.0,87807.0,0.000138]
[1767082104744,0.01148,87815.0,87807.0,0.000138]
[1767082104945,0.0113877,87814.0,87807.0,0.000138]
[1767082105926,0.01138796,87812.0,87807.0,0.000138]
[1767082106123,0.01138796,87812.0,87785.0,0.15367146]
[1767082106124,0.01138913,87803.0,87786.0,0.00010729]
[1767082106328,0.01138926,87802.0,87786.0,0.00010729]
[1767082106527,0.02286913,87803.0,87786.0,0.00010729]
[1767082106528,0.01148,87803.0,87786.0,0.00010729]
[1767082106679,0.01138939,87801.0,87786.0,0.00010729]
[1767082106858,0.12332498,87802.0,87786.0,0.00010729]
[1767082107063,0.01138952,87800.0,87786.0,0.00010729]
[1767082107260,0.02286913,87803.0,87786.0,0.00010729]
[1767082107605,0.01148,87803.0,87786.0,0.00010729]
[1767082107764,0.02286913,87803.0,87786.0,0.00010729]
[1767082107965,0.01138926,87802.0,87786.0,0.00010729]
[1767082108259,0.01138952,87800.0,87786.0,0.00010729]
[1767082108493,0.056949,87798.0,87786.0,0.00010729]
[1767082108666,0.01138965,87799.0,87786.0,0.00010729]
[1767082108925,0.01138952,87800.0,87786.0,0.00010729]
[1767082109299,0.01138965,87799.0,87786.0,0.00010729]
[1767082109470,0.01138887,87805.0,87786.0,0.00010729]
[1767082109471,0.01138783,87813.0,87789.0,0.5259291]
[1767082109673,0.01148,87807.0,87790.0,0.05695409]
[1767082109899,0.01148,87807.0,87793.0,0.01139042]
[1767082110091,0.01148,87807.0,87794.0,0.0113903]
[1767082110302,0.01148,87807.0,87797.0,0.01138991]
[1767082110500,0.01148,87813.0,87807.0,0.000549]
[1767082110893,0.0004,87820.0,87813.0,0.00055]
[1767082111219,0.01148,87819.0,87813.0,0.00055]
[1767082111624,0.01148,87819.0,87813.0,0.01138783]
[1767082111842,0.01148,87819.0,87811.0,0.01138809]
[1767082112232,0.01148,87819.0,87807.0,0.01138861]
[1767082112806,0.01148,87819.0,87805.0,0.01138887]
[1767082113050,0.01148,87819.0,87799.0,0.01138965]
[1767082113230,0.01148,87819.0,87799.0,0.01149694]
[1767082113435,0.01138718,87818.0,87799.0,0.00010729]
[1767082113999,0.02286705,87819.0,87799.0,0.00010729]
[1767082114000,0.01148,87819.0,87799.0,0.00010729]
[1767082114204,0.01138718,87818.0,87799.0,0.01149694]
[1767082114443,0.01138718,87818.0,87799.0,0.00010729]
[1767082114846,0.01138744,87816.0,87799.0,0.00010729]
[1767082115249,0.01138718,87818.0,87799.0,0.00010729]
[1767082115579,0.01138731,87817.0,87799.0,0.00010729]
[1767082115789,0.01138757,87815.0,87799.0,0.00010729]
[1767082116023,0.01138731,87817.0,87799.0,0.00010729]
[1767082116215,0.01138744,87816.0,87799.0,0.00010729]
[1767082116532,0.01138718,87818.0,87799.0,0.00010729]
[1767082116740,0.01148,87819.0,87800.0,0.51453816]
[1767082116942,0.01148,87819.0,87800.0,0.52592768]
[1767082117166,0.01148,87819.0,87800.0,0.51453816]
[1767082117167,0.02286705,87819.0,87800.0,0.51453816]
[1767082117342,0.01138744,87816.0,87799.0,0.00010729]
[1767082117591,0.01138731,87817.0,87799.0,0.00010729]
[1767082117765,0.02286705,87819.0,87799.0,0.00010729]
[1767082117943,0.02286705,87819.0,87799.0,0.01149694]
[1767082118129,0.01138731,87817.0,87799.0,0.00010729]
[1767082118322,0.01138718,87818.0,87799.0,0.00010729]
[1767082118529,0.02286705,87819.0,87799.0,0.01149694]
[1767082118742,0.02286705,87819.0,87799.0,0.00010729]
[1767082118743,0.01138718,87818.0,87799.0,0.00010729]
[1767082118965,0.06832325,87818.0,87799.0,0.00010729]
[1767082119170,0.0113877,87814.0,87799.0,0.00010729]
[1767082119347,0.01138757,87815.0,87799.0,0.00010729]
[1767082119544,0.0113877,87814.0,87799.0,0.00010729]
[1767082119750,0.01138757,87815.0,87799.0,0.00010729]
[1767082119967,0.01138796,87812.0,87799.0,0.00010729]
[1767082120278,0.01148,87811.0,87799.0,0.00010729]
[1767082120588,0.01148,87810.0,87799.0,0.00010729]
[1767082122134,0.12332498,87800.0,87799.0,0.00010729]
[1767082122341,0.12277598,87800.0,87799.0,0.00010729]
[1767082122957,0.12277598,87800.0,87784.0,0.01139159]
[1767082123155,0.12277598,87800.0,87784.0,0.00035785]
[1767082123862,0.01148,87801.0,87784.0,0.01174944]
[1767082124064,0.12332498,87799.0,87784.0,0.01174944]
[1767082124365,0.12332498,87799.0,87785.0,0.01139146]
[1767082124576,0.12332498,87799.0,87786.0,0.01139133]
[1767082124784,0.12332498,87799.0,87785.0,0.01139146]
[1767082126182,0.12332498,87799.0,87784.0,0.01174944]
[1767082126385,0.12332498,87799.0,87784.0,0.00035785]
[1767082126910,0.15844519,87799.0,87784.0,0.00035785]
[1767082127069,0.06833959,87797.0,87784.0,0.00035785]
[1767082127268,0.06833959,87797.0,87784.0,8.5e-07]
[1767082127269,0.01138991,87797.0,87784.0,8.5e-07]
[1767082127567,0.0115903,87794.0,87784.0,8.5e-07]
[1767082127752,0.12332498,87785.0,87774.0,0.0002]
[1767082127919,0.12332498,87785.0,87762.0,0.38868729]
[1767082127920,0.01148,87784.0,87766.0,0.01036316]
[1767082128132,0.01148,87784.0,87768.0,0.06836151]
[1767082128371,0.01148,87784.0,87768.0,0.01139367]
[1767082128587,0.01148,87784.0,87764.0,0.01139419]
[1767082128820,0.12332498,87771.0,87763.0,0.0002]
[1767082128996,0.12332498,87771.0,87763.0,0.01159432]
[1767082129202,0.12222598,87771.0,87763.0,0.0002]
[1767082129612,0.12222598,87771.0,87763.0,0.01159432]
[1767082129929,0.12222598,87771.0,87763.0,0.0002]
[1767082130372,0.01148,87774.0,87765.0,0.06836431]
[1767082130585,0.12332498,87771.0,87763.0,0.01159432]
[1767082130788,0.01148,87776.0,87766.0,0.01139393]
[1767082130996,0.01148,87776.0,87765.0,0.01139406]
[1767082131222,0.12368261,87785.0,87770.0,0.01139341]
[1767082131430,0.01148,87784.0,87767.0,0.0113938]
[1767082131637,0.12368261,87785.0,87768.0,0.01139367]
[1767082131862,0.01148,87783.0,87768.0,0.01139367]
[1767082132076,0.01148,87783.0,87766.0,0.01139393]
[1767082132284,0.01148,87783.0,87765.0,0.01139406]
[1767082132400,0.01139198,87781.0,87763.0,0.0002]
[1767082132623,0.12332498,87771.0,87763.0,0.0002]
[1767082134249,0.12332498,87771.0,87759.0,0.000237]
[1767082134678,0.01139341,87770.0,87748.0,0.16071627]
[1767082135058,0.12332498,87771.0,87753.0,0.01139562]
[1767082135181,0.12332498,87771.0,87754.0,0.01139549]
[1767082135581,0.12332498,87771.0,87753.0,0.01139562]
[1767082136000,0.12332498,87771.0,87750.0,0.01139601]
[1767082136194,0.12332498,87771.0,87753.0,0.01139562]
[1767082136672,0.12332498,87771.0,87751.0,0.01139588]
[1767082136896,0.01139341,87770.0,87751.0,0.01139588]
[1767082137050,0.13471826,87771.0,87740.0,0.01170601]
[1767082137051,0.000112,87751.0,87740.0,0.01170601]
[1767082137227,0.000112,87751.0,87745.0,0.01139666]
[1767082137422,0.01148,87754.0,87748.0,0.01139627]
[1767082137701,0.011043,87754.0,87745.0,0.06837941]
[1767082137887,0.011043,87754.0,87747.0,0.0113964]
[1767082138051,0.011043,87754.0,87745.0,0.01139666]
[1767082138230,0.12332498,87753.0,87745.0,0.01150404]
[1767082138436,0.12332498,87753.0,87745.0,0.00010738]
[1767082139985,0.011043,87754.0,87745.0,0.00023788]
[1767082139986,0.12332498,87752.0,87745.0,0.00023788]
[1767082140589,0.011043,87754.0,87745.0,0.00023788]
[1767082140768,0.011043,87754.0,87747.0,0.0113964]
[1767082140973,0.01148,87754.0,87747.0,0.0115269]
[1767082141177,0.01148,87754.0,87748.0,0.01139627]
[1767082141472,0.12332498,87771.0,87751.0,0.01139588]
[1767082141649,0.01148,87770.0,87752.0,0.01139575]
[1767082141803,0.01148,87770.0,87754.0,0.01139549]
[1767082142007,0.01148,87770.0,87755.0,0.01139536]
[1767082142358,0.01148,87770.0,87758.0,0.01139497]
[1767082142866,0.01148,87770.0,87757.0,0.0113951]
[1767082143190,0.01148,87770.0,87758.0,0.01139497]
[1767082143391,0.01148,87770.0,87756.0,0.01139523]
[1767082143799,0.01148,87770.0,87755.0,0.01139536]
[1767082143800,0.01148,87770.0,87754.0,0.01139549]
[1767082144210,0.01148,87770.0,87750.0,0.0001305]
[1767082144361,0.01139354,87769.0,87750.0,0.01152651]
[1767082144540,0.01139367,87768.0,87750.0,0.0001305]
[1767082144744,0.02287341,87770.0,87750.0,0.01152651]
[1767082144975,0.01139354,87769.0,87750.0,0.0001305]
[1767082145130,0.01139367,87768.0,87750.0,0.0001305]
[1767082145815,0.12332498,87757.0,87750.0,5e-07]
[1767082146026,0.01148,87756.0,87750.0,5e-07]
[1767082148651,0.12332498,87769.0,87756.0,0.06837115]
[1767082148847,0.01148,87767.0,87759.0,0.01139484]
[1767082149221,0.01135,87767.0,87761.0,0.01139458]
[1767082149425,0.01135,87767.0,87755.0,0.01139536]
[1767082149682,0.12332498,87766.0,87757.0,0.0002]
[1767082150096,0.12332498,87766.0,87750.0,5e-07]
[1767082150893,0.13471891,87766.0,87750.0,5e-07]
[1767082151105,0.01139419,87764.0,87750.0,5e-07]
[1767082151311,0.01139406,87765.0,87750.0,5e-07]
[1767082151519,0.12332498,87766.0,87750.0,5e-07]
[1767082151930,0.12332498,87766.0,87750.0,0.06837602]
[1767082152137,0.12332498,87766.0,87753.0,0.01139562]
[1767082152348,0.12332498,87766.0,87752.0,0.01139575]
[1767082152563,0.12332498,87764.0,87753.0,0.01139562]
[1767082152766,0.12332498,87764.0,87754.0,0.01139549]
[1767082152970,0.12332498,87764.0,87753.0,0.01139562]
[1767082153180,0.12332498,87764.0,87750.0,5e-07]
[1767082154438,0.12332498,87764.0,87750.0,0.01139651]
[1767082154650,0.12332498,87764.0,87752.0,0.01139575]
[1767082155092,0.12332498,87764.0,87750.0,5e-07]
[1767082155275,0.12332498,87764.0,87751.0,0.01139588]
[1767082155477,0.12332498,87764.0,87750.0,0.01139651]
[1767082155898,0.12332498,87764.0,87750.0,5e-07]
[1767082156106,0.01144,87769.0,87764.0,0.0002]
[1767082156555,0.12332498,87766.0,87754.0,0.05697723]
[1767082156766,0.01144,87769.0,87762.0,0.01139445]
[1767082156973,0.12332498,87768.0,87760.0,0.01139471]
[1767082157174,0.12332498,87768.0,87760.0,0.06836818]
[1767082157382,0.12332498,87768.0,87761.0,0.01139458]
[1767082157588,0.12332498,87768.0,87760.0,0.01139471]
[1767082157832,0.12332498,87768.0,87757.0,0.0113951]
[1767082158037,0.000349,87760.0,87752.0,0.01139575]
[1767082158238,0.12332498,87768.0,87752.0,0.01139575]
[1767082158467,0.12332498,87768.0,87753.0,0.01139562]
[1767082158889,0.00088087,87754.0,87753.0,0.01139562]
[1767082159075,0.00068087,87754.0,87753.0,0.01139562]
[1767082159717,0.00013488,87754.0,87753.0,0.01139562]
[1767082159932,0.01144,87766.0,87760.0,0.01139471]
[1767082160166,0.01144,87766.0,87764.0,0.05697096]
[1767082160580,0.001099,87764.0,87761.0,0.01139458]
[1767082160993,0.01144,87766.0,87764.0,0.05697096]
[1767082161411,0.0001996,87780.0,87772.0,0.01139315]
[1767082161649,0.01164,87777.0,87772.0,0.01139315]
[1767082161854,0.01164,87777.0,87771.0,0.01139328]
[1767082162094,0.0002,87777.0,87774.0,0.01139289]
[1767082162732,0.0002,87777.0,87773.0,0.01139302]
[1767082162938,0.0002,87777.0,87769.0,0.01139354]
[1767082163138,0.001099,87773.0,87767.0,0.0113938]
[1767082163344,0.001099,87773.0,87767.0,0.00010738]
[1767082163772,0.12332498,87776.0,87767.0,0.00010738]
[1767082163995,0.0002,87777.0,87767.0,0.00010738]
[1767082164196,0.0002,87777.0,87771.0,0.01139328]
[1767082164399,0.0002,87777.0,87770.0,0.01139341]
[1767082164601,0.0002,87777.0,87772.0,0.01139315]
[1767082164814,0.0002,87777.0,87773.0,0.01139302]
[1767082164986,0.0002,87777.0,87774.0,0.06835736]
[1767082164987,1e-08,87777.0,87774.0,0.06835736]
[1767082165331,1e-08,87777.0,87774.0,0.21277736]
[1767082166213,1e-08,87777.0,87774.0,0.06835736]
[1767082166352,1e-08,87777.0,87772.0,0.01139315]
[1767082166552,1e-08,87777.0,87771.0,0.01139328]
[1767082167148,1e-08,87777.0,87772.0,0.01139315]
[1767082167968,1e-08,87777.0,87774.0,0.2127768]
[1767082168164,0.01144,87787.0,87782.0,0.01139185]
[1767082168165,0.00991904,87787.0,87782.0,0.01139185]
[1767082169374,0.00991904,87787.0,87778.0,0.06835387]
[1767082169579,0.00991904,87787.0,87777.0,0.0113925]
[1767082169805,0.00991904,87787.0,87778.0,0.01139237]
[1767082170006,0.00991904,87787.0,87779.0,0.01139224]
[1767082170829,0.00991904,87787.0,87778.0,0.01139237]
[1767082171061,0.000549,87778.0,87777.0,0.0113925]
[1767082171206,0.00991904,87787.0,87777.0,0.0113925]
[1767082171427,0.00991904,87787.0,87777.0,0.0683548]
[1767082171669,0.00991904,87787.0,87780.0,0.01139211]
[1767082172157,0.00991904,87787.0,87779.0,0.01139224]
[1767082172349,0.00991904,87787.0,87778.0,0.00054597]
[1767082172705,0.00991904,87787.0,87778.0,0.01193834]
[1767082173378,0.00991904,87787.0,87778.0,0.00054597]
[1767082174622,0.00991904,87787.0,87778.0,0.01193834]
[1767082174936,0.00991904,87787.0,87778.0,0.00054597]
[1767082175399,0.00991904,87787.0,87778.0,9.7e-07]
[1767082176106,0.02131024,87787.0,87778.0,9.7e-07]
[1767082176314,0.01139133,87786.0,87778.0,9.7e-07]
[1767082176534,0.01139146,87785.0,87778.0,9.7e-07]
[1767082176732,0.07826663,87787.0,87778.0,9.7e-07]
[1767082176733,0.02131024,87787.0,87778.0,9.7e-07]
[1767082176930,0.01139146,87785.0,87778.0,9.7e-07]
[1767082177831,0.02131024,87787.0,87767.0,0.00010738]
[1767082178004,0.01139185,87782.0,87767.0,0.00010738]
[1767082178140,0.01139172,87783.0,87767.0,0.00010738]
[1767082178577,0.01139198,87781.0,87767.0,0.00010738]
[1767082178773,0.01139211,87780.0,87767.0,3.8e-07]
[1767082178975,0.01139237,87778.0,87767.0,3.8e-07]
[1767082179225,0.0002,87777.0,87767.0,3.8e-07]
[1767082179650,0.0115925,87777.0,87767.0,3.8e-07]
[1767082179844,0.0002,87777.0,87767.0,3.8e-07]
[1767082180100,0.01139263,87776.0,87767.0,3.8e-07]
[1767082180798,0.01139276,87775.0,87767.0,3.8e-07]
[1767082181415,0.01144,87775.0,87767.0,3.8e-07]
[1767082182735,0.01144,87775.0,87767.0,20.00000038]
[1767082183163,0.01144,87775.0,87767.0,19.97600038]
[1767082183295,0.02283276,87775.0,87767.0,19.97600038]
[1767082183505,0.01139289,87774.0,87767.0,19.97600038]
[1767082183707,0.06835404,87779.0,87767.0,19.97600038]
[1767082183708,0.0002001,87792.0,87769.0,0.14442]
[1767082183902,0.0002001,87792.0,87774.0,0.01149489]
[1767082184112,0.0002001,87792.0,87771.0,0.06835958]
[1767082184113,0.12332498,87789.0,87777.0,0.0113925]
[1767082184323,0.12332498,87791.0,87782.0,0.01139185]
[1767082184569,0.12332498,87791.0,87779.0,0.01139224]
[1767082184708,0.12332498,87791.0,87781.0,0.01139198]
[1767082184905,0.12332498,87791.0,87779.0,0.01139224]
[1767082185146,0.12332498,87791.0,87778.0,0.01139237]
[1767082185384,0.12332498,87791.0,87777.0,0.0228325]
[1767082185564,0.12332498,87791.0,87777.0,0.01144]
[1767082186174,0.000447,87777.0,87770.0,0.01139341]
[1767082186374,0.000447,87777.0,87768.0,0.01144]
[1767082186375,0.12332498,87775.0,87768.0,0.01144]
[1767082186590,0.000447,87777.0,87767.0,19.98744038]
[1767082186783,0.01144,87785.0,87770.0,0.01139341]
[1767082186989,0.12332498,87777.0,87767.0,19.98744038]
[1767082187320,0.12332498,87777.0,87769.0,0.01139354]
[1767082187917,0.12332498,87777.0,87767.0,19.98744038]
[1767082188119,0.12332498,87777.0,87767.0,19.99883418]
[1767082188330,0.12332498,87777.0,87768.0,0.01139367]
[1767082188522,0.12322298,87777.0,87768.0,0.01139367]
[1767082188700,0.12322298,87777.0,87767.0,19.98744038]
[1767082188909,0.12322298,87777.0,87767.0,19.99883418]
[1767082189115,0.01144,87785.0,87769.0,0.01139354]
[1767082189516,0.01144,87785.0,87770.0,0.01139341]
[1767082189855,0.01144,87785.0,87768.0,0.01139367]
[1767082190047,0.01144,87785.0,87767.0,19.99883418]
[1767082190258,0.01144,87785.0,87768.0,0.01139367]
[1767082190665,0.01144,87785.0,87769.0,0.01139354]
[1767082191002,0.01144,87785.0,87768.0,0.01139367]
[1767082191218,0.01144,87785.0,87767.0,19.98744038]
[1767082191429,0.02283146,87785.0,87767.0,19.98744038]
[1767082191849,0.01144,87785.0,87767.0,19.98744038]
[1767082192052,0.01144,87785.0,87767.0,19.99883418]
[1767082192586,0.01144,87785.0,87767.0,19.97545138]
[1767082192754,0.01144,87785.0,87770.0,0.01139341]
[1767082192918,0.12332498,87775.0,87767.0,19.97545138]
[1767082193114,0.01144,87785.0,87767.0,19.98684518]
[1767082193567,0.12332498,87777.0,87767.0,19.97545138]
[1767082194144,0.02283146,87785.0,87767.0,19.97545138]
[1767082194309,0.01144,87785.0,87768.0,0.01139367]
[1767082194510,0.12332498,87777.0,87767.0,19.98684518]
[1767082194711,0.12332498,87777.0,87770.0,0.01139341]
[1767082195169,0.12332498,87777.0,87772.0,0.01139315]
[1767082195350,0.12332498,87777.0,87770.0,0.01139341]
[1767082195547,0.12332498,87777.0,87772.0,0.01139315]
[1767082195869,0.12332498,87777.0,87770.0,0.01139341]
[1767082196048,0.12332498,87777.0,87771.0,0.01139328]
[1767082196258,0.12332498,87777.0,87772.0,0.01139315]
[1767082196435,0.12332498,87777.0,87771.0,0.01139328]
[1767082196644,0.01144,87785.0,87771.0,0.01139328]
[1767082197104,0.01144,87785.0,87772.0,0.01139315]
[1767082197930,0.01144,87785.0,87775.0,0.01139276]
[1767082198139,0.01144,87785.0,87772.0,0.01139315]
[1767082198358,0.01144,87785.0,87773.0,0.01139302]
[1767082198551,0.01144,87785.0,87774.0,0.01139289]
[1767082198756,0.01144,87785.0,87771.0,0.01139328]
[1767082199162,0.01144,87785.0,87772.0,0.01139315]
[1767082199379,0.01144,87785.0,87771.0,0.01139328]
[1767082200339,0.01144,87785.0,87769.0,0.01139354]
[1767082200587,0.01144,87785.0,87770.0,0.01139341]
[1767082200778,0.01144,87785.0,87771.0,0.01139328]
[1767082200981,0.01144,87785.0,87773.0,0.01139302]
[1767082201254,0.01144,87785.0,87768.0,0.01139367]
[1767082201483,0.01144,87785.0,87772.0,0.01139315]
[1767082201732,0.010891,87785.0,87772.0,0.01144]
[1767082201935,0.010891,87785.0,87773.0,0.06835811]
[1767082202153,0.010891,87785.0,87769.0,0.01139354]
[1767082202356,0.010891,87785.0,87772.0,0.01144]
[1767082203990,0.02228246,87785.0,87772.0,0.01144]
[1767082204190,0.010891,87785.0,87772.0,0.01144]
[1767082204442,0.010891,87785.0,87768.0,0.01144]
[1767082204820,0.010891,87785.0,87769.0,0.01139354]
[1767082205017,0.010891,87785.0,87770.0,0.01139341]
[1767082205305,0.010891,87785.0,87771.0,0.01139328]
[1767082205421,0.010891,87785.0,87771.0,0.06835918]
[1767082205615,0.010891,87785.0,87772.0,0.01139315]
[1767082205824,0.010891,87785.0,87768.0,0.01144]
[1767082205825,0.001099,87772.0,87768.0,0.01144]
[1767082206069,0.001099,87772.0,87764.0,0.01139419]
[1767082206276,0.01139211,87780.0,87761.0,0.01144]
[1767082206444,0.01139198,87781.0,87761.0,0.02283458]
[1767082206651,0.01139185,87782.0,87762.0,0.01139445]
[1767082206858,0.01139198,87781.0,87762.0,0.01139445]
[1767082207086,0.01139185,87782.0,87761.0,0.02283458]
[1767082207307,0.01139185,87782.0,87762.0,0.01139445]
[1767082207648,0.01139198,87781.0,87761.0,0.02283458]
[1767082207844,0.01139211,87780.0,87761.0,0.02283458]
[1767082208087,0.01139198,87781.0,87761.0,0.02283458]
[1767082208300,0.01139198,87781.0,87762.0,0.01139445]
[1767082208453,0.01139185,87782.0,87762.0,0.01139445]
[1767082208657,0.01139185,87782.0,87763.0,0.01139432]
[1767082209457,0.010891,87785.0,87769.0,0.01139354]
[1767082210000,0.010891,87785.0,87770.0,0.01139341]
[1767082210429,0.01144,87785.0,87774.0,0.01139289]
[1767082210688,0.01144,87785.0,87773.0,0.01139302]
[1767082210864,0.01144,87785.0,87777.0,0.0113925]
[1767082211064,0.01144,87785.0,87776.0,0.01139263]
[1767082211263,0.01144,87785.0,87777.0,0.0113925]
[1767082211466,0.01144,87785.0,87776.0,0.01139263]
[1767082211629,0.01144,87785.0,87777.0,0.0113925]
[1767082211823,0.01144,87785.0,87778.0,0.01139237]
[1767082212412,0.01144,87785.0,87777.0,0.0113925]
[1767082212620,0.01144,87785.0,87776.0,0.01139263]
[1767082213068,0.01144,87785.0,87775.0,0.01139276]
[1767082213238,0.01144,87785.0,87777.0,0.0113925]
[1767082213867,0.0001572,87792.0,87783.0,0.01139172]
[1767082214027,0.01068282,87791.0,87783.0,0.01139172]
[1767082214229,0.0001572,87792.0,87784.0,0.01139159]
[1767082215319,0.0001572,87792.0,87787.0,0.0113912]
[1767082215540,0.0001572,87792.0,87785.0,0.05695733]
[1767082215541,0.01138809,87811.0,87788.0,0.12332498]
[1767082215542,0.03075832,87811.0,87788.0,0.12332498]
[1767082215770,0.12618092,87822.0,87803.0,0.01138913]
[1767082215771,0.065,87822.0,87803.0,0.01138913]
[1767082215984,0.065,87822.0,87804.0,0.05694501]
[1767082216199,0.065,87822.0,87808.0,0.01138848]
[1767082216404,0.01144,87819.0,87809.0,0.01138835]
[1767082216599,0.01144,87819.0,87810.0,0.05694112]
[1767082216848,0.065,87822.0,87817.0,0.01138731]
[1767082217026,0.065,87822.0,87813.0,0.01138783]
[1767082217280,0.00106255,87820.0,87808.0,0.05694227]
[1767082217489,0.00106255,87820.0,87813.0,0.01138783]
[1767082217654,0.00106255,87820.0,87818.0,0.05693593]
[1767082217885,0.00106255,87820.0,87817.0,0.01138731]
[1767082218243,0.065,87822.0,87818.0,0.06832311]
[1767082218890,0.065,87822.0,87818.0,0.01138718]
[1767082219756,0.065,87822.0,87815.0,0.01138757]
[1767082219757,0.0001608,87831.0,87825.0,0.01138627]
[1767082219959,0.0001608,87831.0,87828.0,0.01138589]
[1767082220163,0.0001152,87837.0,87829.0,0.02282576]
[1767082220360,0.0001152,87837.0,87830.0,0.05692815]
[1767082220561,0.0001152,87837.0,87834.0,0.01138511]
[1767082221624,0.0001152,87837.0,87835.0,0.05692491]
[1767082221948,0.0002,87845.0,87842.0,0.01138407]
[1767082222146,0.0002,87845.0,87839.0,0.01138446]
[1767082222577,0.0002,87845.0,87840.0,0.01138433]
[1767082222780,0.0002,87845.0,87841.0,0.0113842]
[1767082222930,0.0002319,87851.0,87841.0,0.0113842]
[1767082223114,0.00033919,87851.0,87841.0,0.0113842]
[1767082223337,0.00033919,87851.0,87842.0,0.01138407]
[1767082223740,0.09690306,87869.0,87840.0,0.76585797]
[1767082223741,0.04,87869.0,87854.0,0.01138252]
[1767082223941,1e-08,87865.0,87856.0,0.01138226]
[1767082224166,1e-08,87865.0,87857.0,0.01138213]
[1767082224376,1e-08,87865.0,87854.0,0.01138252]
[1767082224767,1e-08,87865.0,87855.0,0.01138239]
[1767082224977,1e-08,87869.0,87867.0,0.14763]
[1767082225184,1e-08,87869.0,87868.0,0.01144]
[1767082225548,0.0003319,87879.0,87871.0,0.01138031]